bitfinex-derivatives/quotes_BTCF0:USTF0_20210108
["timestamp","ask_amount","ask_price","bid_price","bid_amount"]
[1610111123980,0.13632608,40953.0,40950.0,0.08885]
[1610111124178,4.06532608,40953.0,40950.0,0.08885]
[1610111124378,4.06532608,40953.0,40952.0,0.0002869]
[1610111124580,4.06532608,40953.0,40941.0,0.11453]
[1610111124878,0.13632608,40953.0,40941.0,0.11453]
[1610111125082,4.0533,40942.0,40941.0,0.11453]
[1610111125279,4.18962608,40942.0,40941.0,0.11481691]
[1610111125576,4.18962608,40942.0,40941.0,0.14467118]
[1610111126077,4.18962608,40942.0,40941.0,0.11481691]
[1610111126278,4.18962608,40942.0,40941.0,0.00028691]
[1610111126477,0.13632608,40942.0,40941.0,0.00028691]
[1610111126681,0.13632608,40942.0,40920.0,2.8235]
[1610111126882,0.13632608,40942.0,40941.0,0.00028694]
[1610111127380,0.13632608,40942.0,40931.0,0.13632608]
[1610111127783,0.13632608,40942.0,40932.0,0.00028697]
[1610111128481,0.13632608,40942.0,40933.0,0.00028701]
[1610111128981,0.13632608,40942.0,40934.0,0.00028699]
[1610111129382,0.13632608,40942.0,40941.0,0.13632608]
[1610111130183,0.13632608,40942.0,40929.0,0.11798]
[1610111130386,0.13632608,40942.0,40930.0,0.00028698]
[1610111130685,0.13632608,40942.0,40929.0,0.11798]
[1610111131290,0.13632608,40930.0,40929.0,0.11798]
[1610111131986,0.13632608,40930.0,40913.0,0.13632608]
[1610111132289,3.7008,40924.0,40913.0,0.13632608]
[1610111132490,3.7008,40924.0,40914.0,0.00028704]
[1610111132686,3.7008,40924.0,40914.0,0.12776704]
[1610111133386,3.7008,40924.0,40915.0,0.00028704]
[1610111134089,3.7008,40924.0,40914.0,0.12748]
[1610111135290,0.13632608,40915.0,40914.0,0.12748]
[1610111136694,0.13632608,40915.0,40882.0,2.9473]
[1610111137092,3.16012608,40915.0,40878.0,0.2877]
[1610111137293,0.13632608,40884.0,40883.0,0.00028722]
[1610111137494,0.13632608,40884.0,40879.0,0.00028722]
[1610111137694,3.3872,40882.0,40876.0,0.5]
[1610111137995,0.13632608,40884.0,40876.0,0.5]
[1610111138197,0.13632608,40884.0,40876.0,0.62148]
[1610111139395,0.13632608,40877.0,40876.0,0.62148]
[1610111140597,0.08682,40900.0,40876.0,0.62148]
[1610111141297,0.08682,40900.0,40892.0,0.13632608]
[1610111141496,0.08682,40900.0,40876.0,0.62148]
[1610111141697,0.10233,40911.0,40876.0,0.62148]
[1610111141698,0.10233,40911.0,40886.0,0.12635]
[1610111142499,0.12282,40920.0,40886.0,0.12635]
[1610111142700,0.00287058,40952.0,40886.0,0.12635]
[1610111142900,3.91184658,40953.0,40886.0,0.12635]
[1610111142901,1.0,40928.0,40886.0,0.12635]
[1610111144905,3.8911,40953.0,40886.0,0.12635]
[1610111145106,1.0,40955.0,40886.0,0.12635]
[1610111145305,1.0,40955.0,40925.0,0.13632608]
[1610111145509,1.0,40955.0,40925.0,0.21321608]
[1610111146809,0.2749,40972.0,40925.0,0.08791]
[1610111147306,0.2749,40972.0,40928.0,0.13632608]
[1610111149309,0.2749,40972.0,40952.0,0.13632608]
[1610111149512,0.1569,40980.0,40952.0,0.13632608]
[1610111151114,0.1569,40980.0,40950.0,0.12103]
[1610111151315,0.13632608,40951.0,40950.0,0.12103]
[1610111151512,0.13632608,40951.0,40925.0,0.08791]
[1610111151832,3.5129,40949.0,40925.0,0.08791]
[1610111152012,3.5129,40949.0,40926.0,0.000287]
[1610111152312,3.59513,40949.0,40921.0,0.08035]
[1610111153315,3.59513,40949.0,40887.0,3.4373]
[1610111153316,3.59513,40949.0,40908.0,0.13632608]
[1610111153614,3.59513,40949.0,40887.0,3.4373]
[1610111153615,3.59513,40949.0,40888.0,0.00028714]
[1610111153813,3.59513,40949.0,40909.0,0.00028716]
[1610111154013,3.59513,40949.0,40889.0,0.00028716]
[1610111154213,3.59513,40949.0,40909.0,0.12658]
[1610111154413,3.59513,40949.0,40910.0,0.00028716]
[1610111154713,0.00029885,40948.0,40910.0,0.00028716]
[1610111155114,3.4772,40933.0,40901.0,0.00028721]
[1610111155315,0.13632608,40902.0,40878.0,0.13632608]
[1610111155815,0.13632608,40902.0,40879.0,0.00028722]
[1610111157518,0.12142,40908.0,40891.0,0.13632608]
[1610111157719,0.12142,40908.0,40892.0,0.00028725]
[1610111159420,0.13632608,40893.0,40892.0,0.00028725]
[1610111160822,0.13632608,40893.0,40892.0,0.00028728]
[1610111162029,0.13632608,40893.0,40889.0,0.00028728]
[1610111162324,0.13632608,40893.0,40892.0,0.00028731]
[1610111162525,0.13632608,40893.0,40890.0,0.00028731]
[1610111162724,0.13632608,40893.0,40892.0,0.00028731]
[1610111163126,0.13632608,40893.0,40891.0,0.00028731]
[1610111163328,0.13632608,40893.0,40892.0,0.00028734]
[1610111163731,0.13632608,40893.0,40878.0,0.00028734]
[1610111164130,0.13632608,40893.0,40892.0,0.00028734]
[1610111164430,0.13632608,40893.0,40879.0,0.00028737]
[1610111164632,0.13632608,40893.0,40892.0,0.00028737]
[1610111164930,0.13632608,40893.0,40880.0,0.00028737]
[1610111165130,0.13632608,40893.0,40878.0,0.00028737]
[1610111165329,0.10239,40909.0,40881.0,0.00028737]
[1610111165730,0.10239,40909.0,40879.0,0.00028737]
[1610111166032,4.0397,40911.0,40877.0,0.00028737]
[1610111166230,4.0397,40911.0,40880.0,0.00028737]
[1610111166432,4.0397,40911.0,40878.0,0.00028737]
[1610111166731,4.0397,40911.0,40877.0,0.00028737]
[1610111166934,4.0397,40911.0,40876.0,0.62148]
[1610111166935,4.0397,40911.0,40879.0,0.00028737]
[1610111167337,4.0397,40911.0,40878.0,0.00028737]
[1610111167533,0.13632608,40879.0,40876.0,0.62148]
[1610111167732,0.13632608,40879.0,40878.0,0.00028742]
[1610111168034,0.13632608,40879.0,40877.0,0.00028742]
[1610111168235,0.13632608,40879.0,40878.0,0.00028746]
[1610111168733,0.13632608,40879.0,40876.0,0.5]
[1610111171342,3.75052608,40879.0,40876.0,0.5]
[1610111172240,3.75052608,40879.0,40876.0,0.1739]
[1610111173041,1.0,40877.0,40876.0,0.1739]
[1610111173241,1.12808,40877.0,40805.0,0.01957831]
[1610111173543,1.12808,40877.0,40811.0,0.13632608]
[1610111173740,1.12808,40877.0,40812.0,0.03021934]
[1610111174044,1.12808,40877.0,40811.0,0.22358608]
[1610111174243,1.12808,40877.0,40813.0,0.00027926]
[1610111174643,1.12808,40877.0,40812.0,0.00027926]
[1610111174946,1.12808,40877.0,40811.0,0.08726]
[1610111174947,3.4496,40854.0,40811.0,0.08726]
[1610111175145,0.1013,40854.0,40811.0,0.08726]
[1610111175547,0.13632608,40812.0,40811.0,0.08726]
[1610111178847,0.13632608,40812.0,40805.0,0.01957831]
[1610111179451,0.13632608,40806.0,40805.0,0.01957831]
[1610111183563,0.03612608,40806.0,40805.0,0.01957831]
[1610111184558,3.7789,40830.0,40805.0,0.01957831]
[1610111184759,3.7789,40830.0,40805.0,0.09969831]
[1610111184960,0.11524,40831.0,40805.0,0.09969831]
[1610111185259,0.07772,40840.0,40805.0,0.09969831]
[1610111185460,0.13632608,40806.0,40805.0,0.09969831]
[1610111186061,0.11479,40830.0,40805.0,0.09969831]
[1610111186563,3.86,40845.0,40805.0,0.09969831]
[1610111187563,0.13632608,40806.0,40805.0,0.09969831]
[1610111188564,0.09368,40831.0,40805.0,0.09969831]
[1610111189467,0.13632608,40806.0,40805.0,0.09969831]
[1610111190468,0.13632608,40806.0,40805.0,0.01957831]
[1610111191466,3.832,40809.0,40772.0,0.13632608]
[1610111191767,3.832,40809.0,40772.0,0.26220608]
[1610111192868,0.09205,40812.0,40772.0,0.26220608]
[1610111193569,0.13632608,40806.0,40791.0,0.13632608]
[1610111195370,0.13632608,40806.0,40772.0,0.12588]
[1610111195570,0.09205,40812.0,40772.0,0.12588]
[1610111195769,3.12,40817.0,40772.0,0.12588]
[1610111196369,0.09363,40821.0,40772.0,0.12588]
[1610111196570,0.09368,40831.0,40772.0,0.12588]
[1610111196771,0.00029975,40820.0,40773.0,0.00027958]
[1610111197071,0.12567,40820.0,40763.0,0.00027958]
[1610111197275,0.12567,40820.0,40762.0,3.1171]
[1610111197276,0.00029975,40819.0,40774.0,0.00027958]
[1610111197471,0.00029975,40819.0,40790.0,0.13632608]
[1610111197671,0.00029975,40819.0,40790.0,0.09516]
[1610111197971,0.12567,40820.0,40790.0,0.09516]
[1610111198272,0.00029976,40818.0,40790.0,0.09516]
[1610111198573,0.00029978,40817.0,40790.0,0.09516]
[1610111199073,0.00029978,40816.0,40790.0,0.09516]
[1610111199471,0.12567,40820.0,40790.0,0.09516]
[1610111199472,0.13632608,40791.0,40790.0,0.09516]
[1610111202276,0.12293,40809.0,40790.0,0.09516]
[1610111202678,0.12293,40809.0,40774.0,0.13632608]
[1610111202875,0.12567,40820.0,40790.0,0.10767]
[1610111203077,4.0889,40842.0,40790.0,0.10767]
[1610111203475,4.0889,40842.0,40806.0,0.13632608]
[1610111203784,0.00029974,40841.0,40806.0,0.13632608]
[1610111203977,0.12137,40841.0,40806.0,0.13632608]
[1610111204276,0.00029969,40840.0,40806.0,0.13632608]
[1610111205479,0.00029969,40840.0,40819.0,0.13632608]
[1610111206080,0.00029969,40840.0,40813.0,0.07954]
[1610111206982,1.0,40837.0,40803.0,0.08545]
[1610111207381,0.00029969,40836.0,40804.0,0.00028011]
[1610111207584,0.13632608,40805.0,40804.0,0.13660619]
[1610111207784,0.11442,40821.0,40804.0,0.13660619]
[1610111208184,0.00029968,40820.0,40805.0,0.00028011]
[1610111208383,0.11442,40821.0,40805.0,0.00028011]
[1610111209685,0.13632608,40817.0,40810.0,0.13632608]
[1610111209989,0.13632608,40817.0,40811.0,0.00028006]
[1610111210485,0.12571,40830.0,40811.0,0.00028006]
[1610111211588,0.12137,40841.0,40811.0,0.00028006]
[1610111211589,0.12137,40841.0,40827.0,0.13632608]
[1610111211987,0.00029957,40840.0,40827.0,0.13632608]
[1610111212388,0.112,40841.0,40827.0,0.13632608]
[1610111212588,0.00029957,40840.0,40828.0,0.00028]
[1610111212890,0.112,40841.0,40828.0,0.00028]
[1610111213589,0.112,40841.0,40833.0,0.13632608]
[1610111213790,0.112,40841.0,40828.0,0.00028]
[1610111214291,0.00029957,40840.0,40827.0,0.00028]
[1610111214492,0.00029957,40840.0,40803.0,0.08545]
[1610111214792,0.00029957,40840.0,40786.0,3.965]
[1610111214993,0.00029957,40840.0,40791.0,0.00028009]
[1610111215193,0.00029957,40840.0,40791.0,0.09208009]
[1610111215590,0.13632608,40797.0,40791.0,0.0918]
[1610111215792,0.13632608,40797.0,40792.0,0.00028012]
[1610111219696,0.13632608,40797.0,40793.0,0.13632608]
[1610111220098,0.12768,40813.0,40794.0,0.00028021]
[1610111220999,0.1569,40828.0,40794.0,0.00028021]
[1610111221299,0.00029974,40827.0,40794.0,0.00028021]
[1610111221498,0.08652,40827.0,40794.0,0.00028021]
[1610111221800,0.08652,40827.0,40804.0,0.13632608]
[1610111222299,0.08652,40827.0,40805.0,0.00028013]
[1610111223801,0.13632608,40817.0,40816.0,0.13632608]
[1610111224103,0.13632608,40817.0,40816.0,0.13660616]
[1610111224400,0.112,40841.0,40816.0,0.13660616]
[1610111224601,0.1569,40852.0,40816.0,0.22418616]
[1610111225001,0.00029963,40851.0,40817.0,0.00028006]
[1610111225205,0.1569,40852.0,40816.0,0.22390608]
[1610111225603,0.1569,40852.0,40824.0,0.13632608]
[1610111227404,0.00300927,40851.0,40824.0,0.13632608]
[1610111227603,0.13632608,40825.0,40824.0,0.13632608]
[1610111228404,0.1569,40852.0,40824.0,0.13632608]
[1610111229704,0.1569,40852.0,40847.0,0.13632608]
[1610111230806,0.01448918,40871.0,40847.0,0.13632608]
[1610111230807,0.00301394,40871.0,40847.0,0.13632608]
[1610111231219,0.01032846,40872.0,40847.0,0.13632608]
[1610111231416,0.32251388,40876.0,40847.0,0.13632608]
[1610111231609,0.00301388,40876.0,40866.0,0.13632608]
[1610111231910,0.00301388,40876.0,40845.0,3.5776]
[1610111231911,0.003016,40879.0,40856.0,0.09007]
[1610111232107,0.01450551,40881.0,40856.0,0.09007]
[1610111232108,0.00300707,40881.0,40856.0,0.09007]
[1610111232712,0.16722111,40882.0,40856.0,0.09007]
[1610111232916,0.15991824,40882.0,40856.0,0.09007]
[1610111233209,0.00300961,40883.0,40857.0,0.4145]
[1610111233612,0.00301018,40888.0,40882.0,0.13632608]
[1610111233812,0.01034507,40892.0,40882.0,0.22236608]
[1610111234011,0.00301843,40894.0,40882.0,0.22264181]
[1610111234422,0.00301913,40901.0,40883.0,0.00027569]
[1610111234615,0.00302058,40904.0,40883.0,0.00027569]
[1610111235015,0.00302164,40908.0,40883.0,0.00027569]
[1610111235214,0.00302048,40912.0,40883.0,0.00027569]
[1610111235512,0.00302059,40913.0,40882.0,0.22236608]
[1610111235712,0.00302059,40913.0,40911.0,0.13632608]
[1610111235914,0.13934711,40914.0,40911.0,0.13632608]
[1610111236212,0.13632608,40914.0,40911.0,0.13632608]
[1610111236814,0.00302078,40921.0,40911.0,0.13632608]
[1610111237217,0.00302238,40922.0,40911.0,0.13632608]
[1610111237414,0.87722749,40927.0,40911.0,0.13632608]
[1610111237415,0.00301899,40926.0,40911.0,0.13632608]
[1610111237714,0.13632608,40927.0,40911.0,0.12395]
[1610111239616,0.13632608,40912.0,40911.0,0.12395]
[1610111240017,0.13632608,40912.0,40902.0,0.08221]
[1610111240915,0.13632608,40912.0,40882.0,0.08604]
[1610111241118,0.13632608,40912.0,40880.0,3.5025]
[1610111241720,0.13632608,40899.0,40888.0,0.13632608]
[1610111243625,0.13632608,40894.0,40888.0,0.13632608]
[1610111244422,0.12501,40919.0,40888.0,0.13632608]
[1610111244623,0.12501,40919.0,40888.0,0.22396608]
[1610111245122,0.0779,40931.0,40888.0,0.22396608]
[1610111245322,0.42848106,40935.0,40888.0,0.22396608]
[1610111245723,0.13632608,40901.0,40888.0,0.22396608]
[1610111247826,0.10393,40921.0,40888.0,0.08764]
[1610111248630,0.10393,40921.0,40862.0,2.8915]
[1610111248631,0.10393,40921.0,40879.0,0.08164]
[1610111249029,1.60393,40921.0,40879.0,0.08164]
[1610111249558,2.02853859,40921.0,40862.0,2.8915]
[1610111249735,2.02853859,40921.0,40863.0,0.13632608]
[1610111250132,3.635,40910.0,40863.0,0.13632608]
[1610111250430,3.75442,40910.0,40863.0,0.13632608]
[1610111250628,5.25442,40910.0,40863.0,0.13632608]
[1610111250833,5.25442,40910.0,40835.0,4.0666]
[1610111251033,1.0,40886.0,40835.0,4.0666]
[1610111251232,1.08331,40886.0,40828.0,0.5484]
[1610111251733,1.08331,40886.0,40850.0,0.13632608]
[1610111251933,1.08331,40886.0,40846.0,0.09523]
[1610111252835,1.0,40871.0,40846.0,0.09523]
[1610111253036,1.09909,40871.0,40846.0,0.09523]
[1610111253234,1.09909,40871.0,40828.0,0.2763]
[1610111253436,1.09909,40871.0,40810.0,3.0048]
[1610111253636,1.09909,40871.0,40836.0,0.13632608]
[1610111254137,1.09909,40871.0,40832.0,0.07882]
[1610111254837,0.09909,40871.0,40832.0,0.07882]
[1610111255738,0.09909,40871.0,40836.0,0.13632608]
[1610111255940,0.09909,40871.0,40832.0,0.07882]
[1610111257641,0.13632608,40833.0,40832.0,0.07882]
[1610111258744,0.13632608,40833.0,40811.0,0.2708]
[1610111259643,0.0855,40849.0,40832.0,0.13632608]
[1610111259944,1.0,40869.0,40832.0,0.13632608]
[1610111261044,0.09909,40871.0,40832.0,0.13632608]
[1610111261045,0.37023331,40871.0,40832.0,0.13632608]
[1610111261444,0.37023331,40871.0,40833.0,0.00027555]
[1610111261646,0.37023331,40871.0,40856.0,0.13632608]
[1610111263847,0.13632608,40857.0,40856.0,0.13632608]
[1610111266251,0.13632608,40857.0,40854.0,0.09309]
[1610111266449,0.13632608,40857.0,40831.0,0.11997]
[1610111266653,0.13632608,40857.0,40812.0,0.2747]
[1610111267052,0.13632608,40857.0,40832.0,0.00027553]
[1610111267251,0.13632608,40857.0,40832.0,0.09516]
[1610111267951,0.13632608,40842.0,40841.0,0.13632608]
[1610111268853,0.07739,40862.0,40841.0,0.13632608]
[1610111269756,0.07739,40862.0,40853.0,0.13632608]
[1610111271258,0.37023331,40871.0,40853.0,0.13632608]
[1610111271559,0.37023331,40871.0,40853.0,0.25210608]
[1610111271759,0.37023331,40871.0,40870.0,0.13632608]
[1610111272561,1.0,40898.0,40870.0,0.22664608]
[1610111273067,0.1569,40909.0,40870.0,0.22664608]
[1610111273261,0.1569,40909.0,40871.0,0.00027537]
[1610111273963,0.1569,40909.0,40902.0,0.13632608]
[1610111274563,0.11942,40910.0,40902.0,0.13632608]
[1610111274763,0.41925883,40933.0,40902.0,0.13632608]
[1610111274964,0.41974354,40934.0,40902.0,0.13632608]
[1610111275163,0.00029918,40932.0,40902.0,0.13632608]
[1610111275367,0.09431,40932.0,40902.0,0.13632608]
[1610111275664,0.00029916,40931.0,40902.0,0.13632608]
[1610111275866,0.00029916,40931.0,40920.0,0.13632608]
[1610111276068,0.09431,40932.0,40920.0,0.13632608]
[1610111276465,0.09431,40932.0,40920.0,3.01202608]
[1610111277770,0.13632608,40930.0,40920.0,3.01202608]
[1610111279968,0.13632608,40930.0,40920.0,0.13632608]
[1610111281873,0.13632608,40924.0,40920.0,0.13632608]
[1610111283274,0.13632608,40924.0,40908.0,0.11165]
[1610111283474,0.13632608,40924.0,40904.0,3.6436]
[1610111283889,0.13632608,40913.0,40904.0,3.6436]
[1610111285374,0.13632608,40913.0,40892.0,0.07947]
[1610111285575,0.13632608,40913.0,40878.0,3.8187]
[1610111285775,0.11768,40918.0,40878.0,3.8187]
[1610111285776,0.13632608,40900.0,40892.0,0.13632608]
[1610111286378,0.13632608,40900.0,40878.0,3.8187]
[1610111287880,0.13632608,40891.0,40881.0,0.13632608]
[1610111288081,0.22635608,40891.0,40881.0,0.13632608]
[1610111289882,0.22635608,40891.0,40863.0,3.6667]
[1610111290683,0.09003,40891.0,40864.0,0.00027534]
[1610111290883,0.10493,40908.0,40864.0,0.12189534]
[1610111291083,0.1569,40917.0,40864.0,0.12189534]
[1610111291284,0.1569,40917.0,40865.0,0.00027534]
[1610111291485,0.1569,40917.0,40877.0,3.5967]
[1610111291686,0.1569,40917.0,40877.0,3.70505]
[1610111291886,0.13632608,40917.0,40878.0,0.0002753]
[1610111293492,0.11768,40918.0,40878.0,0.0002753]
[1610111293693,0.08605,40929.0,40878.0,0.0002753]
[1610111293893,0.13632608,40922.0,40921.0,0.13632608]
[1610111295896,0.10466,40925.0,40921.0,0.13632608]
[1610111297996,0.13632608,40942.0,40921.0,0.13632608]
[1610111299798,0.13632608,40922.0,40921.0,0.13632608]
[1610111300499,0.13632608,40922.0,40919.0,0.09319]
[1610111300699,0.13632608,40922.0,40910.0,0.08931]
[1610111301206,0.13632608,40922.0,40890.0,3.5083]
[1610111301801,0.10979,40929.0,40890.0,3.5083]
[1610111301802,0.10979,40929.0,40897.0,0.13632608]
[1610111303403,2.8341,40928.0,40897.0,0.13632608]
[1610111303803,0.13632608,40898.0,40897.0,0.13632608]
[1610111304003,0.24921608,40898.0,40897.0,0.13632608]
[1610111304504,0.24921608,40898.0,40870.0,3.244]
[1610111304904,0.24921608,40898.0,40871.0,0.00027946]
[1610111306005,0.11289,40898.0,40890.0,0.13632608]
[1610111308105,0.13632608,40891.0,40890.0,0.13632608]
[1610111309607,0.11289,40898.0,40890.0,0.13632608]
[1610111310008,2.8341,40928.0,40896.0,0.13632608]
[1610111310411,3.24757144,40928.0,40896.0,0.13632608]
[1610111310609,2.8341,40928.0,40896.0,0.13632608]
[1610111311609,2.8341,40928.0,40871.0,0.08552]
[1610111312012,1.50029922,40927.0,40885.0,0.13632608]
[1610111312212,1.50029922,40927.0,40871.0,0.08552]
[1610111312213,1.91411704,40927.0,40872.0,0.0002795]
[1610111312518,2.8858,40914.0,40860.0,0.0867]
[1610111312713,0.07772,40914.0,40860.0,0.0867]
[1610111313015,1.07772,40914.0,40861.0,0.0002795]
[1610111313914,1.07772,40914.0,40880.0,0.13632608]
[1610111314716,1.07772,40914.0,40860.0,0.0867]
[1610111314918,0.07772,40914.0,40849.0,4.0196]
[1610111315216,0.07772,40914.0,40861.0,0.00027952]
[1610111315519,0.07772,40914.0,40850.0,0.00027952]
[1610111315718,0.07772,40914.0,40862.0,0.00027952]
[1610111315917,3.2003,40908.0,40854.0,0.11203]
[1610111316118,3.2003,40908.0,40871.0,0.13632608]
[1610111316318,3.2003,40908.0,40863.0,0.00027952]
[1610111316519,3.2003,40908.0,40854.0,0.11203]
[1610111316718,3.2003,40908.0,40855.0,0.00027955]
[1610111316920,1.0,40894.0,40855.0,0.00027955]
[1610111317318,1.109,40894.0,40855.0,0.00027955]
[1610111317918,1.109,40894.0,40846.0,0.00027961]
[1610111318121,1.109,40894.0,40863.0,0.13632608]
[1610111318922,0.109,40894.0,40863.0,0.13632608]
[1610111319719,0.4313,40889.0,40863.0,0.13632608]
[1610111320119,0.13632608,40864.0,40863.0,0.13632608]
[1610111320318,0.13632608,40864.0,40818.0,0.2968]
[1610111320520,0.13632608,40864.0,40831.0,3.9346]
[1610111320922,0.13632608,40864.0,40832.0,0.00027967]
[1610111321721,3.1105,40863.0,40832.0,0.00027967]
[1610111321924,3.1105,40863.0,40822.0,0.0002802]
[1610111322124,0.13632608,40838.0,40837.0,0.13632608]
[1610111322525,0.22238608,40838.0,40837.0,0.13660628]
[1610111322725,0.22238608,40838.0,40837.0,0.0002802]
[1610111322924,0.22238608,40838.0,40808.0,3.4866]
[1610111323125,0.22238608,40838.0,40790.0,2.79837118]
[1610111323327,0.22238608,40838.0,40809.0,0.0299503]
[1610111323625,0.22238608,40838.0,40809.0,0.08834]
[1610111323825,0.22238608,40838.0,40810.0,0.00028026]
[1610111324024,0.08606,40838.0,40828.0,0.13632608]
[1610111326028,0.13632608,40849.0,40837.0,0.13632608]
[1610111326229,0.11715,40868.0,40837.0,0.13632608]
[1610111326527,0.2858,40893.0,40839.0,3.8769]
[1610111326829,0.59758381,40894.0,40839.0,3.8769]
[1610111328029,0.59758381,40894.0,40865.0,0.13632608]
[1610111328229,0.109,40894.0,40865.0,0.13632608]
[1610111328433,0.40559997,40900.0,40865.0,0.13632608]
[1610111328632,0.40559997,40900.0,40839.0,3.8769]
[1610111328830,0.40628079,40899.0,40839.0,3.8769]
[1610111329030,1.0,40888.0,40839.0,3.8769]
[1610111329231,1.0,40888.0,40840.0,0.00028013]
[1610111329430,1.09037,40888.0,40840.0,0.00028013]
[1610111330031,1.09037,40888.0,40866.0,0.13632608]
[1610111330934,0.09037,40888.0,40866.0,0.13632608]
[1610111332136,0.13632608,40867.0,40866.0,0.13632608]
[1610111332336,0.23008608,40867.0,40866.0,0.13632608]
[1610111333936,0.23008608,40867.0,40866.0,0.00028013]
[1610111334238,0.09376,40867.0,40837.0,0.00028016]
[1610111334437,0.09376,40867.0,40836.0,3.1405]
[1610111334837,0.09376,40867.0,40838.0,0.0002802]
[1610111335036,0.09376,40867.0,40837.0,0.00028022]
[1610111335239,0.09376,40867.0,40836.0,3.1405]
[1610111335240,0.09376,40867.0,40839.0,0.00028024]
[1610111335637,0.09376,40867.0,40838.0,0.00028024]
[1610111335837,0.09376,40867.0,40837.0,0.00028027]
[1610111336039,0.09376,40867.0,40839.0,0.00028027]
[1610111336240,0.09376,40867.0,40838.0,0.00028027]
[1610111336737,0.09376,40867.0,40837.0,0.00028027]
[1610111336938,0.09376,40867.0,40839.0,0.00028027]
[1610111337139,0.09376,40867.0,40838.0,0.00028027]
[1610111337439,1.0,40876.0,40840.0,0.00028027]
[1610111337739,1.0,40876.0,40839.0,0.00028027]
[1610111337938,1.1061,40876.0,40841.0,0.00028027]
[1610111338238,0.13632608,40842.0,40840.0,0.00028027]
[1610111338440,0.13632608,40842.0,40841.0,0.00028027]
[1610111339041,0.13632608,40842.0,40837.0,0.00028027]
[1610111339241,0.13632608,40842.0,40823.0,0.07731]
[1610111339242,0.13632608,40842.0,40824.0,0.00028027]
[1610111339442,0.11807,40847.0,40838.0,0.00028027]
[1610111339642,0.11807,40847.0,40831.0,2.7515]
[1610111340043,0.11807,40847.0,40846.0,0.13632608]
[1610111340343,0.13632608,40861.0,40846.0,0.13632608]
[1610111340548,0.13632608,40861.0,40846.0,0.13660627]
[1610111340755,0.13632608,40861.0,40847.0,0.00028016]
[1610111342247,0.1061,40876.0,40847.0,0.00028016]
[1610111342647,0.1061,40876.0,40833.0,0.03022447]
[1610111342847,0.00029946,40875.0,40848.0,0.00028022]
[1610111343047,0.00029946,40875.0,40833.0,0.02994427]
[1610111343048,0.00029946,40875.0,40834.0,0.00028022]
[1610111343448,0.1061,40876.0,40833.0,0.03022447]
[1610111343650,0.1061,40876.0,40835.0,0.0002802]
[1610111343849,0.00029949,40875.0,40834.0,0.00028024]
[1610111344050,0.00029949,40875.0,40850.0,0.13632608]
[1610111344251,0.00029949,40875.0,40836.0,0.00028024]
[1610111344450,0.00029949,40875.0,40851.0,0.00028024]
[1610111344750,0.00029949,40875.0,40837.0,0.00028024]
[1610111344951,0.12523949,40875.0,40852.0,0.00028026]
[1610111345149,0.12523949,40875.0,40811.0,3.1309]
[1610111345150,2.9818,40870.0,40811.0,3.1309]
[1610111345450,0.00029955,40869.0,40818.0,0.10418]
[1610111345850,0.00029955,40869.0,40819.0,0.0302371]
[1610111346151,0.00029955,40869.0,40820.0,0.13632608]
[1610111346550,0.00029955,40869.0,40821.0,0.00028034]
[1610111346750,1.50029955,40869.0,40821.0,0.00028034]
[1610111346952,1.0,40851.0,40821.0,0.00028034]
[1610111347152,1.07776,40851.0,40821.0,0.00028034]
[1610111347855,1.07776,40851.0,40821.0,0.03023837]
[1610111348053,0.13632608,40831.0,40826.0,0.13632608]
[1610111348657,0.13632608,40831.0,40827.0,0.00028032]
[1610111349656,0.09519,40842.0,40827.0,0.00028032]
[1610111350655,0.09519,40842.0,40820.0,0.03023743]
[1610111351055,0.09519,40842.0,40828.0,0.00028032]
[1610111351356,0.09519,40842.0,40821.0,0.00028032]
[1610111351554,0.09519,40842.0,40810.0,0.03023809]
[1610111351755,0.09519,40842.0,40822.0,0.00028032]
[1610111351955,0.09519,40842.0,40811.0,0.00028034]
[1610111352156,0.09519,40842.0,40820.0,0.13632608]
[1610111352355,0.09519,40842.0,40823.0,0.00028034]
[1610111352555,0.09519,40842.0,40821.0,0.00028034]
[1610111352756,0.09519,40842.0,40824.0,0.00028034]
[1610111353056,0.09519,40842.0,40822.0,0.00028034]
[1610111353258,3.35079392,40851.0,40825.0,0.00027801]
[1610111353556,3.35079392,40851.0,40823.0,0.00027801]
[1610111353958,3.35079392,40851.0,40826.0,0.00027801]
[1610111354159,0.13632608,40827.0,40824.0,0.00027801]
[1610111354358,0.13632608,40827.0,40820.0,0.13632608]
[1610111354657,0.13632608,40827.0,40799.0,2.7808]
[1610111354658,0.13632608,40827.0,40825.0,0.00027801]
[1610111354858,0.13632608,40827.0,40821.0,0.00027801]
[1610111355059,0.25355608,40827.0,40821.0,0.00027801]
[1610111355258,0.25355608,40827.0,40826.0,0.00027803]
[1610111355558,0.25355608,40827.0,40822.0,0.00027805]
[1610111355758,0.25355608,40827.0,40801.0,0.00027807]
[1610111355960,0.25355608,40827.0,40796.0,0.10548]
[1610111355961,0.25355608,40827.0,40823.0,0.00027807]
[1610111356159,0.25355608,40827.0,40802.0,0.0002781]
[1610111356563,0.25355608,40827.0,40796.0,0.10548]
[1610111356761,0.25355608,40827.0,40803.0,0.00027812]
[1610111357060,1.0,40826.0,40801.0,0.00027812]
[1610111357260,1.0,40826.0,40804.0,0.00027812]
[1610111357462,3.7241,40813.0,40802.0,0.00027814]
[1610111357663,3.80597,40813.0,40802.0,0.00027814]
[1610111357863,3.80597,40813.0,40805.0,0.00027814]
[1610111358064,3.80597,40813.0,40796.0,0.10548]
[1610111358065,3.80597,40813.0,40803.0,0.00027816]
[1610111358265,0.13632608,40804.0,40801.0,0.00027816]
[1610111358564,0.13632608,40804.0,40803.0,0.00027818]
[1610111358863,0.13632608,40804.0,40802.0,0.00027818]
[1610111359065,0.23520608,40804.0,40801.0,0.00027818]
[1610111359262,0.23520608,40804.0,40803.0,0.00027818]
[1610111359467,0.23520608,40804.0,40776.0,0.13632608]
[1610111359865,0.23520608,40804.0,40803.0,0.0002782]
[1610111360062,0.23520608,40804.0,40800.0,0.3703782]
[1610111360966,0.23520608,40804.0,40759.0,0.10102]
[1610111361165,3.6244,40774.0,40759.0,0.10102]
[1610111361566,3.6244,40774.0,40760.0,0.00027828]
[1610111361767,0.11084,40777.0,40760.0,0.00027828]
[1610111361967,3.7304,40761.0,40748.0,0.00027834]
[1610111362171,0.13632608,40749.0,40748.0,0.00027834]
[1610111362365,0.70392608,40749.0,40748.0,0.00027834]
[1610111364365,0.70392608,40749.0,40729.0,0.13632608]